bitfinex/quotes_SOLUSD_20230702
["timestamp","ask_amount","ask_price","bid_price","bid_amount"]
[1688283538258,22.17,19.08,19.073,22.177]
[1688283541364,57.099,19.085,19.073,22.177]
[1688283541566,57.067,19.083,19.073,22.177]
[1688283541768,75.0,19.082,19.073,22.177]
[1688283541971,22.17,19.08,19.073,22.177]
[1688283545369,79.245,19.08,19.07,19.52]
[1688283545866,79.245,19.08,19.072,22.178]
[1688283546865,79.245,19.08,19.07,19.52]
[1688283547070,55.0,19.079,19.063,57.126]
[1688283547364,55.0,19.079,19.067,22.183]
[1688283547365,79.266,19.075,19.067,22.183]
[1688283549362,22.175,19.075,19.067,22.183]
[1688283557979,22.175,19.075,19.067,79.297]
[1688283558362,55.0,19.079,19.067,183.508]
[1688283558764,22.175,19.076,19.067,79.297]
[1688283559367,22.175,19.076,19.067,22.183]
[1688283566273,22.173,19.077,19.067,22.183]
[1688283566474,22.173,19.077,19.068,4.34665036]
[1688283566674,22.173,19.077,19.07,22.18]
[1688283571687,79.257,19.077,19.069,22.182]
[1688283571993,22.176,19.074,19.069,22.182]
[1688283572791,55.0,19.076,19.069,22.182]
[1688283572974,22.178,19.073,19.068,22.183]
[1688283573175,22.178,19.073,19.067,22.184]
[1688283575485,22.177,19.074,19.067,22.184]
[1688283576893,22.176,19.075,19.067,22.184]
[1688283577098,55.0,19.076,19.067,22.184]
[1688283577794,22.176,19.074,19.067,22.184]
[1688283583495,55.0,19.073,19.061,178.55477286]
[1688283583693,22.181,19.07,19.065,22.186]
[1688283583897,22.181,19.07,19.061,83.75527286]
[1688283583898,22.181,19.07,19.064,22.187]
[1688283584093,22.181,19.07,19.063,22.188]
[1688283587701,22.181,19.07,19.05,19.52]
[1688283587702,55.0,19.069,19.061,22.19]
[1688283587905,22.185,19.067,19.061,22.19]
[1688283589186,22.185,19.067,19.06,22.192]
[1688283589391,55.0,19.066,19.06,22.192]
[1688283589613,22.188,19.065,19.06,22.192]
[1688283589791,22.187,19.066,19.06,22.192]
[1688283590097,19.67,19.07,19.06,22.192]
[1688283591795,22.184,19.068,19.06,22.192]
[1688283595003,55.0,19.067,19.051,94.7671]
[1688283595207,22.19,19.063,19.056,22.196]
[1688283596810,22.189,19.064,19.056,22.196]
[1688283599614,22.188,19.065,19.056,22.196]
[1688283599805,77.188,19.064,19.056,22.196]
[1688283600010,22.188,19.064,19.056,22.196]
[1688283601215,55.0,19.063,19.056,22.196]
[1688283601397,77.19,19.063,19.056,22.196]
[1688283602016,57.118,19.068,19.056,22.196]
[1688283602216,55.0,19.067,19.056,22.196]
[1688283602511,19.67,19.07,19.057,6.66477308]
[1688283602719,41.852,19.07,19.06,183.572]
[1688283603094,64.048,19.07,19.06,183.572]
[1688283603294,44.378,19.07,19.06,183.572]
[1688283603814,161.245,19.077,19.061,8.88692829]
[1688283604014,22.179,19.072,19.064,22.188]
[1688283608200,22.179,19.072,19.06,19.52]
[1688283608400,22.179,19.072,19.061,22.191]
[1688283608600,22.183,19.068,19.061,22.191]
[1688283616925,22.183,19.068,19.057,25.77451549]
[1688283617137,55.0,19.067,19.058,7.49531022]
[1688283617424,22.188,19.065,19.057,22.195]
[1688283617625,22.188,19.065,19.056,22.197]
[1688283617825,22.191,19.062,19.056,22.197]
[1688283619908,22.19,19.063,19.056,22.197]
[1688283620136,55.0,19.062,19.056,22.197]
[1688283621226,114.268,19.067,19.056,22.197]
[1688283621227,95.48,19.068,19.056,22.197]
[1688283621530,77.185,19.067,19.06,22.193]
[1688283621709,22.185,19.067,19.06,22.193]
[1688283621910,22.184,19.068,19.061,8.02417257]
[1688283622230,22.184,19.068,19.063,22.189]
[1688283625320,22.183,19.069,19.063,22.189]
[1688283625529,77.183,19.068,19.063,22.189]
[1688283625820,19.67,19.07,19.063,22.189]
[1688283626029,22.184,19.068,19.063,22.189]
[1688283631432,22.184,19.068,19.062,22.19]
[1688283631735,22.184,19.068,19.059,57.137]
[1688283632034,22.184,19.068,19.06,6.3919832]
[1688283632836,22.184,19.068,19.063,22.188]
[1688283633830,22.182,19.07,19.063,22.188]
[1688283641138,57.097,19.073,19.063,22.188]
[1688283641328,22.176,19.075,19.064,8.97833298]
[1688283641528,57.079,19.079,19.067,79.297]
[1688283641729,57.079,19.079,19.068,14.34623832]
[1688283641929,22.175,19.075,19.071,22.179]
[1688283642635,22.175,19.076,19.071,22.179]
[1688283644332,8.97263696,19.081,19.071,22.179]
[1688283644647,22.172,19.078,19.071,22.179]
[1688283646741,55.0,19.077,19.071,22.179]
[1688283646944,22.172,19.078,19.071,22.179]
[1688283647138,8.97263696,19.081,19.071,22.179]
[1688283647341,8.97263696,19.081,19.071,126.368]
[1688283647542,104.092,19.089,19.071,126.368]
[1688283647742,22.169,19.081,19.072,22.22921359]
[1688283647938,22.169,19.081,19.074,22.175]
[1688283648147,22.169,19.081,19.071,22.179]
[1688283648334,19.67,19.08,19.069,22.181]
[1688283648645,22.173,19.077,19.069,22.181]
[1688283651747,22.173,19.077,19.07,19.58]
[1688283651949,22.173,19.077,19.072,22.178]
[1688283660556,22.173,19.077,19.071,22.18]
[1688283660757,22.173,19.077,19.07,19.58]
[1688283661864,22.173,19.077,19.071,22.179]
[1688283671474,22.174,19.077,19.071,22.179]
[1688283673669,22.17,19.08,19.071,22.179]
[1688283675872,22.17,19.08,19.071,48.77529295]
[1688283676077,22.17,19.08,19.071,22.179]
[1688283678388,22.17,19.08,19.07,41.76]
[1688283678558,41.84,19.08,19.068,25.91615462]
[1688283678763,55.0,19.079,19.064,14.26429037]
[1688283679067,22.176,19.075,19.067,22.184]
[1688283679976,55.0,19.074,19.067,22.184]
[1688283680276,22.179,19.072,19.067,22.184]
[1688283680677,22.178,19.073,19.067,22.184]
[1688283682068,22.178,19.073,19.068,4.45759533]
[1688283682266,22.177,19.074,19.069,22.182]
[1688283682473,22.176,19.074,19.069,22.182]
[1688283682779,57.082,19.078,19.069,22.182]
[1688283683078,55.0,19.077,19.069,22.182]
[1688283683864,22.176,19.074,19.069,22.182]
[1688283684381,22.176,19.075,19.069,22.182]
[1688283685575,55.0,19.074,19.069,22.182]
[1688283685883,77.177,19.074,19.069,22.182]
[1688283686080,55.0,19.074,19.069,22.182]
[1688283687487,55.0,19.075,19.069,22.182]
[1688283691087,22.173,19.078,19.069,22.182]
[1688283691289,55.0,19.077,19.069,22.182]
[1688283691483,77.173,19.077,19.069,22.182]
[1688283692572,22.173,19.078,19.069,22.182]
[1688283694875,22.172,19.079,19.069,22.182]
[1688283695071,19.67,19.08,19.069,22.182]
[1688283696389,41.839,19.08,19.069,22.182]
[1688283696690,55.0,19.079,19.069,22.182]
[1688283696990,22.174,19.077,19.069,22.182]
[1688283699894,19.67,19.08,19.069,22.182]
[1688283700197,22.169,19.081,19.07,74.58]
[1688283700384,22.169,19.081,19.073,79.272]
[1688283701582,22.169,19.081,19.073,22.177]
[1688283702178,79.241,19.081,19.073,22.177]
[1688283703681,22.169,19.081,19.073,22.177]
[1688283709798,79.241,19.081,19.073,22.177]
[1688283711900,22.169,19.081,19.073,79.273]
[1688283712094,22.169,19.081,19.073,22.177]
[1688283716404,22.169,19.081,19.069,26.46773984]
[1688283716900,22.169,19.081,19.068,7.14334747]
[1688283717098,22.169,19.081,19.073,22.177]
[1688283720300,22.169,19.081,19.071,22.179]
[1688283720603,22.172,19.078,19.071,22.179]
[1688283722096,22.171,19.079,19.071,183.47]
[1688283722300,22.172,19.078,19.071,183.47]
[1688283722508,22.172,19.078,19.071,79.281]
[1688283725397,22.172,19.078,19.071,22.179]
[1688283733115,8.97263696,19.084,19.071,79.281]
[1688283733314,22.172,19.078,19.072,22.22921359]
[1688283733503,22.172,19.078,19.073,22.177]
[1688283733813,22.172,19.078,19.069,22.181]
[1688283733814,79.253,19.078,19.069,22.181]
[1688283733997,55.0,19.077,19.069,22.181]
[1688283734199,22.176,19.075,19.069,22.181]
[1688283736717,22.175,19.075,19.069,22.181]
[1688283737107,22.175,19.076,19.069,22.181]
[1688283743319,22.177,19.074,19.069,22.181]
[1688283744507,77.176,19.075,19.069,22.181]
[1688283745503,55.0,19.075,19.069,22.181]
[1688283745705,19.67,19.08,19.069,22.181]
[1688283745910,22.173,19.077,19.069,22.181]
[1688283759632,19.67,19.08,19.069,22.181]
[1688283759936,22.173,19.082,19.07,21.90369677]
[1688283760135,22.171,19.079,19.073,22.177]
[1688283763721,22.17,19.08,19.073,22.177]
[1688283763911,22.17,19.08,19.073,79.273]
[1688283764116,22.17,19.08,19.073,22.177]
[1688283766229,126.284,19.085,19.073,22.177]
[1688283766437,386.85842222,19.115,19.073,22.177]
[1688283766438,57.041,19.092,19.073,22.177]
[1688283766614,13.69394503,19.091,19.08,19.52]
[1688283766842,22.159,19.09,19.083,22.165]
[1688283767129,104.063,19.095,19.083,22.165]
[1688283767130,81.88047774,19.108,19.083,22.165]
[1688283767314,399.79992183,19.114,19.08,19.52]
[1688283767315,22.152,19.095,19.087,79.214]
[1688283767516,22.152,19.096,19.087,79.214]
[1688283767722,76.686,19.1,19.087,79.214]
[1688283767915,22.149,19.098,19.087,79.214]
[1688283772538,22.149,19.098,19.087,79.215]
[1688283773027,55.0,19.097,19.087,22.161]
[1688283773337,22.153,19.094,19.087,22.161]
[1688283776622,55.0,19.097,19.087,22.161]
[1688283776818,1.51670751,19.099,19.087,22.161]
[1688283777341,56.51670751,19.099,19.087,22.161]
[1688283777835,22.149,19.098,19.087,22.161]
[1688283778236,74.67,19.102,19.09,19.52]
[1688283778438,19.67,19.11,19.09,19.52]
[1688283778439,22.143,19.103,19.099,22.146]
[1688283779644,22.142,19.104,19.099,22.146]
[1688283779831,22.141,19.105,19.099,22.146]
[1688283783034,19.67,19.11,19.091,94.6682]
[1688283783345,55.0,19.109,19.099,22.146]
[1688283784839,22.141,19.105,19.099,22.146]
[1688283787445,22.14,19.106,19.099,22.146]
[1688283787752,55.0,19.109,19.099,22.146]
[1688283788048,77.137,19.109,19.099,22.146]
[1688283789445,317.3165,19.113,19.092,75.0]
[1688283789446,56.994,19.113,19.103,79.147]
[1688283789645,22.13,19.115,19.103,79.147]
[1688283790437,56.961,19.119,19.103,79.147]
[1688283790438,22.129,19.116,19.103,79.147]
[1688283790633,19.67,19.12,19.103,79.147]
[1688283790853,19.67,19.11,19.098,25.96961054]
[1688283791059,183.131,19.107,19.09,19.58]
[1688283791368,1.57036596,19.106,19.091,52.156]
[1688283791649,22.143,19.103,19.091,22.156]
[1688283791855,22.143,19.103,19.08,19.52]
[1688283791856,19.67,19.1,19.09,26.49156415]
[1688283792150,22.15,19.097,19.091,22.156]
[1688283792348,22.15,19.097,19.09,22.157]
[1688283793047,55.0,19.096,19.084,104.114]
[1688283793249,22.155,19.093,19.083,57.063]
[1688283793439,55.0,19.092,19.082,57.068]
[1688283793641,77.156,19.092,19.086,22.162]
[1688283794054,55.0,19.092,19.086,22.162]
[1688283794253,77.156,19.092,19.086,22.162]
[1688283794557,55.0,19.092,19.086,22.162]
[1688283795136,77.155,19.092,19.086,22.162]
[1688283795354,55.0,19.092,19.086,22.162]
[1688283795847,55.0,19.093,19.086,22.162]
[1688283796561,57.062,19.097,19.086,22.162]
[1688283796854,22.146,19.1,19.086,22.162]
[1688283797060,22.146,19.1,19.084,57.062]
[1688283797061,97.1916,19.109,19.093,183.254]
[1688283797238,56.966,19.117,19.093,183.254]
[1688283797436,22.128,19.116,19.094,55.0]
[1688283797642,6.55237336,19.119,19.101,183.175]
[1688283797841,6.55237336,19.119,19.102,20.0]
[1688283797842,22.126,19.118,19.102,20.0]
[1688283798148,22.126,19.118,19.106,22.138]
[1688283798853,22.126,19.118,19.097,104.045]
[1688283799055,7.22592596,19.117,19.103,22.142]
[1688283799254,22.131,19.113,19.103,22.142]
[1688283799741,22.134,19.111,19.103,22.142]
[1688283802054,2.0673046,19.116,19.103,79.148]
[1688283802243,55.0,19.116,19.103,79.148]
[1688283802661,22.13,19.115,19.103,183.163]
[1688283803550,22.13,19.115,19.104,98.0672]
[1688283803749,22.13,19.115,19.107,22.138]
[1688283804656,22.123,19.121,19.107,79.132]
[1688283804861,19.54,19.13,19.114,79.101]
[1688283805045,22.117,19.126,19.114,79.101]
[1688283805245,22.117,19.126,19.104,98.0672]
[1688283805445,22.117,19.126,19.107,56.994]
[1688283805446,126.006,19.126,19.107,56.994]
[1688283805664,1.50849925,19.125,19.105,191.003]
[1688283805850,22.124,19.119,19.11,22.134]
[1688283806050,22.124,19.119,19.109,22.135]
[1688283806454,55.0,19.118,19.109,22.135]
[1688283806660,22.128,19.116,19.109,22.135]
[1688283808747,160.865,19.122,19.109,79.123]
[1688283808945,22.128,19.116,19.109,22.135]
[1688283812551,22.128,19.117,19.109,22.135]
[1688283813269,56.954,19.121,19.109,22.135]
[1688283813465,22.127,19.117,19.109,22.135]
[1688283824483,22.127,19.117,19.105,56.998]
[1688283825279,22.127,19.117,19.109,22.135]
[1688283826384,103.906,19.123,19.109,22.135]
[1688283826587,75.0,19.122,19.109,22.135]
[1688283826883,22.127,19.117,19.109,22.135]
[1688283828386,22.127,19.117,19.104,155.0682]
[1688283828586,55.0,19.116,19.097,104.047]
[1688283828783,79.118,19.111,19.103,22.142]
[1688283829083,55.0,19.11,19.094,104.062]
[1688283829285,55.0,19.11,19.098,22.147]
[1688283829286,22.139,19.107,19.098,22.147]
[1688283829580,22.139,19.107,19.099,20.0]
[1688283829795,22.139,19.107,19.101,22.144]
[1688283830088,22.139,19.107,19.103,22.142]
[1688283830266,55.0,19.11,19.103,22.142]
[1688283830469,22.138,19.107,19.1,22.145]
[1688283830667,22.141,19.105,19.1,22.145]
[1688283831988,131.471,19.11,19.1,22.145]
[1688283832286,55.0,19.11,19.1,22.145]
[1688283832687,56.983,19.111,19.1,22.145]
[1688283833781,22.139,19.107,19.1,22.145]
[1688283834285,22.139,19.107,19.095,104.054]
[1688283834474,22.136,19.109,19.1,22.146]
[1688283834784,22.135,19.11,19.1,22.146]
[1688283835370,57.025,19.114,19.1,22.146]
[1688283835577,75.0,19.113,19.1,22.146]
[1688283836782,97.132,19.113,19.1,22.146]
[1688283837182,75.0,19.113,19.1,22.146]
[1688283837394,97.132,19.113,19.1,22.146]
[1688283837688,75.0,19.113,19.1,22.146]
[1688283837993,20.0,19.113,19.1,22.146]
[1688283838191,22.131,19.113,19.1,22.146]
[1688283838388,20.0,19.112,19.1,22.146]
[1688283838688,42.133,19.112,19.1,22.146]
[1688283840279,20.0,19.112,19.1,22.146]
[1688283840593,20.0,19.113,19.1,22.146]
[1688283841000,22.132,19.113,19.1,22.146]
[1688283841191,20.0,19.112,19.1,22.146]
[1688283841396,42.132,19.112,19.1,22.146]
[1688283841697,20.0,19.112,19.1,22.146]
[1688283841902,76.97,19.117,19.1,22.146]
[1688283842190,56.97,19.117,19.1,22.146]
[1688283842397,714.39992183,19.134,19.105,183.14]
[1688283842398,22.128,19.116,19.105,183.14]
[1688283842581,22.127,19.117,19.105,183.14]
[1688283843690,22.126,19.118,19.105,183.14]
[1688283844596,22.124,19.119,19.105,183.14]
[1688283844895,22.124,19.119,19.109,79.121]
[1688283846205,113.888,19.124,19.109,79.121]
[1688283846398,75.0,19.123,19.109,79.121]
[1688283847191,113.888,19.124,19.109,79.121]
[1688283847395,160.813,19.128,19.114,79.1]
[1688283849002,22.119,19.124,19.114,79.1]
[1688283850604,55.0,19.127,19.114,79.1]
[1688283850901,22.118,19.125,19.114,79.1]
[1688283852903,22.117,19.126,19.114,79.1]
[1688283853690,55.0,19.128,19.114,79.1]
[1688283853891,55.0,19.129,19.114,79.1]
[1688283854285,160.786,19.131,19.114,79.1]
[1688283854286,55.0,19.13,19.114,79.1]
[1688283854790,22.116,19.127,19.114,79.1]
[1688283859909,55.0,19.126,19.114,79.1]
[1688283860106,22.12,19.123,19.114,79.1]
[1688283861191,22.119,19.124,19.114,79.1]
[1688283868415,56.926,19.13,19.114,79.1]
[1688283868715,22.118,19.125,19.114,79.1]
[1688283869724,55.0,19.129,19.114,79.1]
[1688283869906,22.116,19.126,19.114,79.1]
[1688283872213,55.0,19.131,19.114,79.1]
[1688283872413,22.112,19.13,19.115,55.0]
[1688283872712,22.112,19.13,19.12,79.076]
[1688283874218,56.912,19.135,19.12,79.076]
[1688283874416,40.36488676,19.143,19.121,75.0]
[1688283874619,22.107,19.135,19.126,22.115]
[1688283876094,19.607,19.135,19.126,22.115]
[1688283877011,118.5737,19.142,19.126,79.053]
[1688283877198,22.098,19.142,19.126,79.053]
[1688283877809,78.988,19.142,19.126,79.053]
[1688283878321,78.988,19.142,19.126,22.115]
[1688283878512,20.0,19.141,19.126,22.115]
[1688283879501,20.0,19.141,19.127,55.0]
[1688283879702,22.103,19.138,19.131,22.11]
[1688283881919,22.1,19.141,19.131,22.11]
[1688283882303,56.884,19.145,19.131,22.11]
[1688283882523,20.0,19.144,19.131,22.11]
[1688283883812,22.099,19.141,19.131,22.11]
[1688283884009,22.099,19.141,19.135,22.105]
[1688283886328,98.24,19.16,19.135,22.105]
[1688283886624,22.1,19.141,19.135,22.105]
[1688283887215,56.872,19.149,19.135,79.016]
[1688283887524,22.096,19.144,19.139,22.1]
[1688283887908,56.864,19.151,19.14,20.0]
[1688283888114,56.855,19.154,19.143,22.096]
[1688283888717,22.087,19.151,19.143,22.096]
[1688283889021,19.57,19.16,19.143,22.096]
[1688283889022,22.087,19.152,19.143,22.096]
[1688283889815,103.72,19.158,19.143,22.096]
[1688283890028,56.846,19.157,19.143,22.096]
[1688283890228,56.855,19.159,19.143,22.096]
[1688283890534,105.02820058,19.167,19.15,202.185]
[1688283890535,26.78649339,19.167,19.15,202.185]
[1688283890707,48.85549339,19.167,19.155,182.659]
[1688283891033,26.78649339,19.167,19.156,55.0]
[1688283891319,2.99992183,19.194,19.156,55.0]
[1688283891320,215.82,19.19,19.163,78.901]
[1688283891529,22.062,19.173,19.163,78.901]
[1688283891714,56.787,19.177,19.163,78.901]
[1688283892220,56.787,19.177,19.163,22.073]
[1688283892221,78.861,19.173,19.163,22.073]
[1688283892413,20.0,19.172,19.163,22.073]
[1688283892719,22.066,19.17,19.162,22.073]
[1688283893029,55.0,19.169,19.157,56.843]
[1688283893324,56.798,19.174,19.162,22.074]
[1688283893521,22.066,19.17,19.162,22.074]
[1688283893722,22.066,19.17,19.157,56.843]
[1688283893926,22.066,19.17,19.16,22.076]
[1688283894611,55.0,19.169,19.16,22.076]
[1688283894819,22.069,19.167,19.16,22.076]
[1688283897531,56.793,19.175,19.16,182.618]
[1688283897712,22.064,19.172,19.164,22.072]
[1688283897916,22.066,19.169,19.156,56.848]
[1688283898118,22.066,19.169,19.153,10.83719922]
[1688283898119,22.066,19.169,19.154,103.736]
[1688283898308,22.066,19.169,19.151,95.1941]
[1688283898309,125.722,19.169,19.158,22.078]
[1688283899214,22.066,19.169,19.158,22.078]
[1688283901216,22.066,19.169,19.158,125.794]
[1688283901512,22.063,19.173,19.16,19.48]
[1688283901712,19.54,19.18,19.163,182.581]
[1688283901929,22.06,19.175,19.163,182.581]
[1688283902128,196.0034,19.182,19.163,182.581]
[1688283902433,22.06,19.175,19.168,22.066]
[1688283903229,55.0,19.183,19.168,78.88]
[1688283903420,55.0,19.183,19.169,20.0]
[1688283903729,19.79,19.19,19.172,22.062]
[1688283903730,103.555,19.188,19.172,22.062]
[1688283903925,103.555,19.188,19.172,78.863]
[1688283904114,103.555,19.188,19.172,22.062]
[1688283904318,22.05,19.184,19.173,22.061]
[1688283904924,21.05,19.184,19.17,98.2736]
[1688283905126,21.05,19.184,19.171,42.064]
[1688283905432,19.62,19.18,19.16,19.55]
[1688283905630,19.62,19.18,19.151,3.0]
[1688283905631,182.485,19.174,19.161,50.0]
[1688283905817,182.485,19.174,19.161,30.0]
[1688283906218,182.485,19.174,19.154,160.589]
[1688283906535,75.0,19.173,19.155,30.0]
[1688283906723,182.545,19.168,19.156,22.08]
[1688283906929,182.545,19.168,19.155,22.082]
[1688283907241,182.545,19.168,19.151,56.861]
[1688283907430,78.908,19.162,19.153,22.084]
[1688283907622,78.908,19.162,19.148,22.089]
[1688283907821,55.0,19.161,19.148,22.089]
[1688283908031,22.08,19.158,19.148,22.089]
[1688283908239,158.668,19.167,19.148,182.731]
[1688283908541,22.08,19.158,19.148,78.961]
[1688283908918,22.08,19.158,19.148,22.089]
[1688283909341,56.837,19.166,19.148,182.731]
[1688283909528,56.816,19.167,19.15,19.44]
[1688283909725,22.069,19.167,19.155,78.933]
[1688283909926,22.069,19.168,19.155,78.933]
[1688283910135,56.798,19.174,19.156,55.0]
[1688283910432,56.798,19.174,19.161,78.908]
[1688283910823,22.065,19.171,19.161,78.408]
[1688283911629,22.065,19.171,19.161,21.575]
[1688283913139,92.3101,19.189,19.161,21.575]
[1688283913332,92.3101,19.189,19.162,55.0]
[1688283913333,103.607,19.179,19.162,55.0]
[1688283913539,103.607,19.179,19.167,22.069]
[1688283914859,182.442,19.179,19.167,22.069]
[1688283915033,182.442,19.179,19.167,22.068]
[1688283916137,22.06,19.175,19.167,22.068]
[1688283916639,22.06,19.175,19.163,56.828]
[1688283916846,22.06,19.175,19.166,22.069]
[1688283917025,22.06,19.175,19.163,56.828]
[1688283917026,78.867,19.172,19.163,22.072]
[1688283917233,78.867,19.172,19.158,56.843]
[1688283917448,55.0,19.171,19.161,22.075]
[1688283917744,22.068,19.168,19.161,22.075]
[1688283917930,22.068,19.168,19.16,22.076]
[1688283918243,22.068,19.168,19.159,22.077]
[1688283919747,125.73,19.168,19.14,91.41]
[1688283919926,55.0,19.167,19.152,22.086]
[1688283920126,78.903,19.163,19.144,103.79]
[1688283920433,78.903,19.163,19.147,56.873]
[1688283920628,22.08,19.158,19.149,22.089]
[1688283922442,22.08,19.158,19.143,56.887]
[1688283922641,22.08,19.158,19.146,22.092]
[1688283923633,22.08,19.158,19.146,78.97]
[1688283924434,125.796,19.158,19.146,22.092]
[1688283924857,125.796,19.158,19.141,97.5882]
[1688283925030,125.796,19.158,19.146,22.093]
[1688283926153,22.08,19.158,19.146,78.971]
[1688283926832,125.796,19.158,19.146,22.093]
[1688283931242,55.0,19.157,19.146,22.093]
[1688283931559,78.939,19.154,19.146,22.093]
[1688283932939,22.084,19.154,19.146,22.093]
[1688283933650,22.084,19.154,19.146,22.092]
[1688283937238,19.44,19.17,19.152,22.086]
[1688283937459,219.4778,19.17,19.152,78.946]
[1688283937638,22.075,19.162,19.152,22.086]
[1688283937842,78.906,19.162,19.152,22.086]
[1688283938657,22.075,19.162,19.152,22.086]
[1688283939349,22.075,19.162,19.126,27.40662145]
[1688283939350,22.075,19.162,19.145,103.785]
[1688283939545,22.081,19.157,19.152,22.086]
[1688283940244,111.836,19.161,19.152,22.086]
[1688283941367,78.927,19.157,19.145,56.879]
[1688283941535,78.927,19.157,19.148,22.089]
[1688283941740,22.084,19.154,19.148,22.089]
[1688283941954,22.084,19.154,19.147,22.091]
[1688283943343,22.084,19.154,19.143,56.886]
[1688283943662,22.084,19.154,19.13,91.23]
[1688283943663,55.0,19.153,19.144,22.094]
[1688283943843,22.088,19.151,19.144,22.094]
[1688283944044,22.088,19.151,19.143,22.095]
[1688283945061,22.087,19.152,19.143,22.095]
[1688283945461,22.087,19.152,19.143,78.982]
[1688283945651,22.087,19.152,19.143,22.095]
[1688283945951,55.0,19.151,19.143,22.095]
[1688283946269,22.09,19.149,19.143,22.095]
[1688283947067,56.86,19.153,19.143,22.095]
[1688283947262,22.089,19.15,19.143,22.095]
[1688283948170,55.0,19.149,19.138,56.9]
[1688283948348,22.093,19.146,19.142,22.097]
[1688283948668,22.093,19.146,19.141,22.098]
[1688283948853,22.093,19.146,19.132,99.0451]
[1688283949047,22.093,19.146,19.136,22.104]
[1688283949048,55.0,19.145,19.136,22.104]
[1688283949257,22.097,19.143,19.136,22.104]
[1688283949461,22.097,19.143,19.12,39.08]
[1688283949462,125.894,19.143,19.122,99.0451]
[1688283949668,55.0,19.142,19.122,99.0451]
[1688283949969,55.0,19.142,19.124,79.062]
[1688283949970,22.104,19.136,19.124,79.062]
[1688283950268,97.23,19.143,19.124,79.062]